fUSD/lending_fUSD_20260207
["ID","MTS","AMOUNT","RATE_DAILY","PERIOD"]
[404710281,1770489041448,-229.0,0.00019232,2]
[404710282,1770489041458,-229.0,0.0001927,2]
[404710283,1770489041469,-229.0,0.00019273,2]
[404710284,1770489041479,-507.0,0.00019378,3]
[404710285,1770489041488,-229.0,0.00019479,2]
[404710286,1770489041498,-229.0,0.00019545,2]
[404710287,1770489041508,-1132.4107953,0.000196,2]
[404710288,1770489041518,-1067.22037138,0.000196,2]
[404710289,1770489041527,-1076.19692817,0.000196,2]
[404710290,1770489041538,-1081.82008693,0.000196,2]
[404710291,1770489041547,-1071.09537155,0.000196,2]
[404710292,1770489041556,-1086.94770041,0.000196,2]
[404710293,1770489041566,-1102.54359011,0.000196,2]
[404710294,1770489041576,-1115.0628562,0.000196,2]
[404710295,1770489041586,-400.0,0.0001997,2]
[404710296,1770489041595,-400.0,0.0001997,2]
[404710297,1770489041604,-400.0,0.0001997,2]
[404710298,1770489041614,-550.0,0.0001997,2]
[404710299,1770489041624,-173.26,0.0002,7]
[404710300,1770489041634,-529.97285625,0.0002,7]
[404710301,1770489041645,-272.3259299,0.0002,20]
[404710302,1770489041655,-507.0,0.00020756,4]
[404710303,1770489041664,-715.42612945,0.0002081,2]
[404710304,1770489041673,-300.0,0.0002087,2]
[404710305,1770489041683,-400.0,0.0002087,2]
[404710306,1770489041692,-400.0,0.0002087,2]
[404710307,1770489041702,-20000.0,0.0002087,2]
[404710308,1770489041711,-163.85394682,0.00020958,2]
[404710309,1770489041721,-160.0,0.00021,7]
[404710310,1770489041730,-157.34916484,0.00021302,2]
[404710311,1770489041739,-168956.03,0.00021757,2]
[404710312,1770489041749,-151.0,0.00021757,2]
[404710313,1770489041758,-276.603023,0.00021757,2]
[404710314,1770489041768,-151.0,0.00021757,2]
[404710315,1770489041777,-276.603023,0.00021757,2]
[404710316,1770489041787,-151.0,0.00021757,2]
[404710317,1770489041796,-276.603023,0.00021757,2]
[404710318,1770489041806,-151.0,0.00021757,2]
[404710319,1770489041815,-276.603023,0.00021757,2]
[404710320,1770489041825,-241.907631,0.00021757,2]
[404710321,1770489041835,-151.0,0.00021757,2]
[404710322,1770489041844,-151.0,0.00021757,2]
[404710323,1770489041854,-5000.0,0.00021918,2]
[404710324,1770489041864,-500.0,0.00021918,2]
[404710325,1770489041874,-331.61789,0.00021942,30]
[404710326,1770489041883,-500.0,0.00021973,2]
[404710327,1770489041892,-500.0,0.00022028,2]
[404710328,1770489041902,-489.40689815,0.00022082,2]
[404710329,1770489041911,-507.0,0.00022133,5]
[404710330,1770489041920,-4448.04,0.000222,7]
[404710331,1770489041929,-715.42612945,0.00022407,2]
[404710332,1770489041939,-500.0,0.0002246,2]
[404710333,1770489041948,-501.52124127,0.0002246,2]
[404710334,1770489041959,-1000.0,0.00023008,2]
[404710335,1770489041968,-157.34916484,0.00023077,2]
[404710336,1770489041977,-2346.54064059,0.00023289,2]
[404710337,1770489041987,-495.91332241,0.0002335,2]
[404710338,1770489042159,-507.0,0.00023511,7]
[404710339,1770489042170,-160.0,0.00023531,2]
[404710340,1770489042182,-1500.0,0.00023556,2]
[404710341,1770489042191,-607.37,0.00023633,2]
[404710342,1770489042202,-715.42612945,0.00024004,2]
[404710343,1770489042212,-2000.0,0.00024104,2]
[404710344,1770489042222,-1369.28825225,0.00024652,2]
[404710345,1770489042231,-289.68,0.00024658,2]
[404710346,1770489042240,-150.0,0.00024658,2]
[404710347,1770489042250,-157.34916484,0.00024853,2]
[404710348,1770489042259,-507.0,0.00024889,8]
[404710349,1770489042268,-216.0,0.0002493,30]
[404710350,1770489042277,-330.13,0.00024997,2]
[404710351,1770489042287,-291.59598529,0.00025,2]
[404710352,1770489042297,-175.73,0.00025295,2]
[404710353,1770489042306,-519.78,0.000255,14]
[404710354,1770489042316,-163.85394682,0.00025568,2]
[404710355,1770489042326,-715.42612945,0.000256,2]
[404710356,1770489042335,-150.0,0.0002589,2]
[404710357,1770489042345,-4448.04,0.000259,7]
[404710358,1770489042355,-276.348241,0.00025932,30]
[404710359,1770489042368,-305.84811997,0.00026185,2]
[404710360,1770489042377,-507.0,0.00026267,9]
[404710361,1770489042387,-157.34916484,0.00026628,2]
[404710362,1770489042397,-164.48774038,0.00027,2]
[404710363,1770489042407,-150.0,0.00027185,2]
[404710364,1770489042416,-715.42612945,0.00027197,2]
[404710365,1770489042426,-251.149,0.00027205,2]
[404710366,1770489042435,-1274.706,0.00027205,2]
[404710367,1770489042445,-1206.0,0.00027205,2]
[404710368,1770489042454,-917.837,0.00027205,2]
[404710369,1770489042463,-616.0,0.00027205,2]
[404710370,1770489042473,-2447.0,0.00027205,2]
[404710371,1770489042482,-3255.0,0.00027205,2]
[404710372,1770489042492,-150.0,0.00027369,2]
[404710373,1770489042501,-512.47058824,0.0002737,2]
[404710374,1770489042510,-2346.54064059,0.00027378,2]
[404710375,1770489042520,-559.94,0.00027397,30]
[404710376,1770489042530,-300.0,0.00027397,2]
[404710377,1770489042539,-1000.0,0.00027397,20]
[404710378,1770489042548,-507.0,0.00027644,11]
[404710379,1770489042558,-289.68,0.00027938,2]
[404710380,1770489042568,-1213.9488436,0.00028,60]
[404710381,1770489042578,-157.34916484,0.00028403,2]
[404710382,1770489042587,-196.27,0.00028417,14]
[404710383,1770489042596,-150.0,0.00028544,2]
[404710384,1770489042605,-715.42612945,0.00028794,2]
[404710385,1770489042615,-507.0,0.00029022,12]
[404710386,1770489042625,-170.2742883,0.00029566,2]
[404710387,1770489042635,-157.39713174,0.00029571,5]
[404710388,1770489042655,-2304.82415246,0.00029571,2]
[404710389,1770489042669,-150.0,0.00029971,2]
[404710390,1770489042679,-237.38329208,0.0002999,2]
[404710391,1770489042688,-163.14671548,0.0003,2]
[404710392,1770489042697,-1100.63268506,0.0003013,2]
[404710393,1770489042707,-634.57864906,0.0003013,2]
[404710394,1770489042716,-201.87528113,0.0003013,2]
[404710395,1770489042726,-5401.06462395,0.0003013,2]
[404710396,1770489042736,-157.34916484,0.00030178,2]
[404710397,1770489042745,-163.85394682,0.00030179,2]
[404710398,1770489042755,-1272.0,0.00030205,2]
[404710399,1770489042765,-1206.0,0.00030205,2]
[404710400,1770489042774,-917.0,0.00030205,2]
[404710401,1770489042784,-616.0,0.00030205,2]
[404710402,1770489042794,-3255.0,0.00030205,2]
[404710403,1770489042804,-715.42612945,0.0003039,2]
[404710404,1770489042813,-507.0,0.000304,13]
[404710405,1770489042823,-330.13,0.00030448,2]
[404710406,1770489042834,-196.26,0.00030839,14]
[404710407,1770489042844,-175.73,0.0003111,2]
[404710408,1770489042854,-289.68,0.00031219,2]
[404710409,1770489042864,-4448.04,0.000313,7]
[404710410,1770489042875,-163.0,0.0003143,3]
[404710411,1770489042884,-2346.54064059,0.00031467,2]
[404710412,1770489042894,-150.0,0.0003147,2]
[404710413,1770489042903,-197.47031313,0.000315,2]
[404710414,1770489042913,-150.0,0.000315,2]
[404710415,1770489042922,-163.0,0.0003175,3]
[404710416,1770489042934,-507.0,0.00031778,14]
[404710417,1770489042943,-276.348241,0.00031916,30]
[404710418,1770489042952,-157.34916484,0.00031953,2]
[404710419,1770489042962,-715.42612945,0.00031987,2]
[404710420,1770489042971,-433.15,0.000322,14]
[404710421,1770489042981,-559.94,0.00032232,30]
[404710422,1770489042991,-683.29411765,0.00032849,30]
[404710423,1770489043000,-151.0,0.00032877,31]
[404710424,1770489043010,-151.0,0.00032877,31]
[404710425,1770489043019,-151.0,0.00032877,31]
[404710426,1770489043028,-151.0,0.00032877,31]
[404710427,1770489043039,-20366.34,0.000329,14]
[404710428,1770489043048,-714.78,0.00033,14]
[404710429,1770489043058,-153.63540437,0.00033,2]
[404710430,1770489043067,-150.0,0.00033043,2]
[404710431,1770489043076,-604.57,0.000331,2]
[404710432,1770489043086,-171.11,0.000331,14]
[404710433,1770489043095,-428.0,0.000331,2]
[404710435,1770489043104,-507.0,0.00033156,16]
[404710436,1770489043114,-1272.0,0.00033205,2]
[404710437,1770489043123,-1205.735,0.00033205,2]
[404710438,1770489043133,-917.0,0.00033205,2]
[404710439,1770489043146,-616.0,0.00033205,2]
[404710440,1770489043156,-3253.0,0.00033205,2]
[404710442,1770489043166,-715.42612945,0.00033584,2]
[404710443,1770489043175,-300.0,0.00033857,10]
[404710444,1770489043186,-300.0,0.00033857,10]
[404710445,1770489043196,-319.44104056,0.00033857,10]
[404710446,1770489043205,-46828.54,0.00033858,2]
[404710447,1770489043216,-150.0,0.00033873,5]
[404710448,1770489043226,-150.0,0.00033873,5]
[404710449,1770489043235,-150.0,0.00033873,5]
[404710451,1770489043245,-300.0,0.00034174,2]
[404710454,1770489043254,-150.0,0.00034174,2]
[404710456,1770489043264,-150.0,0.00034174,4]
[404710457,1770489043274,-150.0,0.00034174,4]
[404710459,1770489043284,-150.0,0.00034174,7]
[404710460,1770489043295,-300.0,0.00034174,2]
[404710461,1770489043305,-150.0,0.00034174,2]
[404710462,1770489043315,-150.0,0.00034174,4]
[404710463,1770489043325,-150.0,0.00034174,4]
[404710464,1770489043335,-150.0,0.00034174,7]
[404710465,1770489043345,-5530.0,0.000342,3]
[404710466,1770489043355,-301.0,0.00034257,2]
[404710467,1770489043366,-150.0,0.00034257,2]
[404710468,1770489043375,-150.0,0.00034257,4]
[404710469,1770489043385,-150.0,0.00034257,4]
[404710470,1770489043395,-150.0,0.00034257,7]
[404710471,1770489043405,-150.0,0.00034288,2]
[404710472,1770489043415,-150.0,0.00034288,2]
[404710473,1770489043424,-150.0,0.00034288,2]
[404710474,1770489043434,-150.0,0.00034288,2]
[404710475,1770489043444,-150.0,0.00034288,2]
[404710476,1770489043454,-150.0,0.00034288,2]
[404710477,1770489043463,-150.0,0.00034288,2]
[404710478,1770489043472,-150.0,0.00034288,2]
[404710479,1770489043482,-150.0,0.00034288,2]
[404710480,1770489043492,-150.0,0.00034288,2]
[404710481,1770489043502,-150.0,0.00034288,2]
[404710482,1770489043511,-150.0,0.00034288,2]
[404710483,1770489043521,-150.0,0.00034288,2]
[404710484,1770489043532,-150.0,0.00034288,2]
[404710485,1770489043542,-240.0,0.00034288,2]
[404710486,1770489043552,-150.0,0.00034288,4]
[404710487,1770489043562,-150.0,0.00034288,4]
[404710488,1770489043571,-150.0,0.00034288,4]
[404710489,1770489043580,-150.0,0.00034288,4]
[404710490,1770489043590,-150.0,0.00034288,4]
[404710491,1770489043599,-150.0,0.00034288,4]
[404710492,1770489043608,-150.0,0.00034288,4]
[404710493,1770489043617,-150.0,0.00034288,4]
[404710494,1770489043627,-150.0,0.00034288,4]
[404710495,1770489043637,-150.0,0.00034288,4]
[404710496,1770489043646,-150.0,0.00034288,4]
[404710497,1770489043656,-150.0,0.00034288,4]
[404710498,1770489043666,-150.0,0.00034288,4]
[404710499,1770489043675,-150.0,0.00034288,4]
[404710500,1770489043685,-150.0,0.00034288,4]
[404710501,1770489043695,-150.0,0.00034288,4]
[404710502,1770489043704,-150.0,0.00034288,4]
[404710503,1770489043714,-150.0,0.00034288,4]
[404710504,1770489043723,-150.0,0.00034288,4]
[404710505,1770489043732,-150.0,0.00034288,4]
[404710506,1770489043742,-150.0,0.00034288,4]
[404710507,1770489043751,-150.0,0.00034288,5]
[404710508,1770489043760,-150.0,0.00034288,5]
[404710509,1770489043770,-150.0,0.00034288,5]
[404710510,1770489043780,-150.0,0.00034288,5]
[404710511,1770489043789,-170.0,0.00034288,5]
[404710512,1770489043799,-150.0,0.00034288,7]
[404710513,1770489043808,-150.0,0.00034288,7]
[404710514,1770489043818,-150.0,0.00034288,7]
[404710515,1770489043828,-150.0,0.00034288,7]
[404710516,1770489043839,-150.0,0.00034288,7]
[404710517,1770489043848,-150.0,0.00034288,7]
[404710518,1770489043858,-150.0,0.00034288,7]
[404710519,1770489043869,-150.0,0.00034288,7]
[404710520,1770489043878,-150.0,0.00034288,7]
[404710521,1770489043888,-150.0,0.00034288,8]
[404710522,1770489043897,-150.0,0.00034288,8]
[404710523,1770489043907,-150.0,0.00034288,9]
[404710524,1770489043916,-150.0,0.00034288,9]
[404710525,1770489043926,-290.0,0.00034288,10]
[404710526,1770489043936,-300.0,0.00034399,10]
[404710527,1770489043945,-20366.34,0.000344,14]
[404710528,1770489043955,-250.0,0.00034421,5]
[404710529,1770489043964,-250.0,0.00034421,5]
[404710530,1770489043974,-250.0,0.00034421,5]
[404710531,1770489043983,-289.68,0.000345,2]
[404710532,1770489043993,-20366.33,0.000345,2]
[404710533,1770489044003,-801.5,0.00034508,30]
[404710534,1770489044012,-733.0,0.00034508,30]
[404710535,1770489044023,-507.0,0.00034533,17]
[404710536,1770489044032,-150.0,0.00034696,2]
[404710537,1770489044042,-4448.04,0.000347,14]
[404710538,1770489044054,-163.85394682,0.00034789,2]
[404710539,1770489044065,-350.0,0.00034968,5]
[404710540,1770489044076,-287.66363463,0.00034968,5]
[404710541,1770489044087,-350.0,0.00034968,5]
[404710542,1770489044097,-500.0,0.00035,2]
[404710543,1770489044108,-403.27053126,0.00035,30]
[404710544,1770489044119,-1000.0,0.00035139,2]
[404710545,1770489044131,-715.42612945,0.0003518,2]
[404710546,1770489044146,-5530.0,0.000353,5]
[404710547,1770489044157,-607.37,0.00035414,2]
[404710548,1770489044166,-300.0,0.00035499,10]
[404710549,1770489044177,-20366.34,0.000355,14]
[404710550,1770489044191,-441.40961792,0.00035516,5]
[404710551,1770489044200,-494.49066866,0.00035516,5]
[404710552,1770489044211,-2346.54064059,0.00035556,2]
[404710553,1770489044224,-1708.23529412,0.00035589,120]
[404710554,1770489044234,-171.47622543,0.000356,120]
[404710555,1770489044245,-1029.45407458,0.000356,30]
[404710556,1770489044254,-164.8272093,0.000356,120]
[404710557,1770489044263,-161.09653074,0.000356,120]
[404710558,1770489044273,-300.0,0.00035615,10]
[404710559,1770489044282,-500.0,0.00035616,120]
[404710561,1770489044291,-500.0,0.00035616,120]
[404710563,1770489044301,-500.0,0.00035616,120]
[404710565,1770489044310,-500.0,0.00035616,120]
[404710566,1770489044320,-497.29825063,0.00035616,120]
[404710567,1770489044329,-500.0,0.00035616,2]
[404710568,1770489044339,-500.0,0.00035616,2]
[404710569,1770489044349,-500.0,0.00035616,2]
[404710570,1770489044359,-500.0,0.00035616,2]
[404710571,1770489044368,-500.0,0.00035616,2]
[404710572,1770489044378,-500.0,0.00035616,2]
[404710573,1770489044387,-500.0,0.00035616,2]
[404710574,1770489044397,-458.60302738,0.00035616,2]
[404710575,1770489044406,-500.0,0.00035616,120]
[404710576,1770489044416,-500.0,0.00035616,120]
[404710577,1770489044425,-500.0,0.00035616,120]
[404710578,1770489044435,-500.0,0.00035616,120]
[404710579,1770489044444,-500.0,0.00035616,120]
[404710580,1770489044453,-509.95009223,0.00035616,120]
[404710581,1770489044463,-500.0,0.00035616,120]
[404710582,1770489044472,-500.0,0.00035616,120]
[404710583,1770489044481,-500.0,0.00035616,120]
[404710584,1770489044491,-500.0,0.00035616,120]
[404710585,1770489044501,-500.0,0.00035616,120]
[404710586,1770489044510,-500.0,0.00035616,120]
[404710587,1770489044519,-500.0,0.00035616,120]
[404710588,1770489044528,-500.0,0.00035616,120]
[404710589,1770489044539,-500.0,0.00035616,120]
[404710590,1770489044548,-251.01677682,0.00035616,120]
[404710591,1770489044557,-500.0,0.00035616,120]
[404710592,1770489044567,-500.0,0.00035616,120]
[404710593,1770489044576,-500.0,0.00035616,120]
[404710594,1770489044585,-512.72044027,0.00035616,120]
[404710595,1770489044595,-500.0,0.00035616,120]
[404710596,1770489044604,-500.0,0.00035616,120]
[404710597,1770489044613,-500.0,0.00035616,120]
[404710598,1770489044623,-553.01522406,0.00035616,120]
[404710599,1770489044632,-500.0,0.00035616,120]
[404710600,1770489044641,-500.0,0.00035616,120]
[404710601,1770489044650,-500.0,0.00035616,120]
[404710602,1770489044659,-500.0,0.00035616,120]
[404710603,1770489044669,-500.0,0.00035616,120]
[404710604,1770489044679,-564.72522652,0.00035616,120]
[404710605,1770489044688,-500.0,0.00035616,120]
[404710606,1770489044697,-500.0,0.00035616,120]
[404710607,1770489044707,-531.16705146,0.00035616,120]
[404710608,1770489044717,-500.0,0.00035616,120]
[404710609,1770489044726,-500.0,0.00035616,120]
[404710610,1770489044736,-500.0,0.00035616,120]
[404710611,1770489044745,-277.87443969,0.00035616,120]
[404710612,1770489044755,-500.0,0.00035616,120]
[404710613,1770489044765,-564.03276301,0.00035616,120]
[404710614,1770489044774,-509.51127569,0.00035616,120]
[404710615,1770489044784,-500.0,0.00035616,120]
[404710616,1770489044794,-527.31887316,0.00035616,120]
[404710617,1770489044803,-500.0,0.00035616,120]
[404710618,1770489044812,-500.0,0.00035616,120]
[404710619,1770489044822,-500.0,0.00035616,120]
[404710620,1770489044831,-500.0,0.00035616,120]
[404710621,1770489044841,-500.0,0.00035616,120]
[404710622,1770489044852,-500.0,0.00035616,120]
[404710623,1770489044861,-500.0,0.00035616,120]
[404710624,1770489044871,-500.0,0.00035616,120]
[404710625,1770489044880,-500.0,0.00035616,120]
[404710626,1770489044890,-500.0,0.00035616,120]
[404710627,1770489044899,-500.0,0.00035616,120]
[404710628,1770489044908,-500.0,0.00035616,120]
[404710629,1770489044918,-500.0,0.00035616,120]
[404710630,1770489044928,-553.07073879,0.00035616,120]
[404710631,1770489044937,-500.0,0.00035616,120]
[404710632,1770489044947,-503.55997817,0.00035616,120]
[404710633,1770489044956,-500.0,0.00035616,120]
[404710634,1770489044967,-500.0,0.00035616,120]
[404710635,1770489044980,-500.0,0.00035616,120]
[404710636,1770489044991,-500.0,0.00035616,120]
[404710637,1770489045000,-500.0,0.00035616,120]
[404710638,1770489045011,-522.89336935,0.00035616,120]
[404710639,1770489045021,-584.97033805,0.00035616,120]
[404710640,1770489045031,-500.0,0.00035616,120]
[404710641,1770489045040,-500.0,0.00035616,120]
[404710642,1770489045051,-500.0,0.00035616,120]
[404710643,1770489045061,-500.0,0.00035616,120]
[404710644,1770489045070,-500.0,0.00035616,120]
[404710645,1770489045081,-177.33684491,0.00035616,120]
[404710646,1770489045092,-500.0,0.00035616,120]
[404710647,1770489045103,-500.0,0.00035616,120]
[404710648,1770489045114,-500.0,0.00035616,120]
[404710649,1770489045125,-500.0,0.00035616,120]
[404710650,1770489045136,-500.0,0.00035616,120]
[404710651,1770489045150,-578.84715492,0.00035616,120]
[404710652,1770489045162,-500.0,0.00035616,120]
[404710653,1770489045171,-500.0,0.00035616,120]
[404710654,1770489045180,-191.73732774,0.00035616,120]
[404710655,1770489045191,-500.0,0.00035616,120]
[404710656,1770489045200,-500.0,0.00035616,120]
[404710657,1770489045212,-500.0,0.00035616,120]
[404710658,1770489045221,-500.0,0.00035616,120]
[404710659,1770489045231,-500.0,0.00035616,120]
[404710660,1770489045240,-315.72612972,0.00035616,120]
[404710661,1770489045249,-500.0,0.00035616,120]
[404710665,1770489045401,-539.44562662,0.00035616,120]
[404710666,1770489045412,-500.0,0.00035616,120]
[404710667,1770489045421,-525.64347027,0.00035616,120]
[404710668,1770489045432,-500.0,0.00035616,120]
[404710669,1770489045442,-500.0,0.00035616,120]
[404710670,1770489045453,-532.75063634,0.00035616,120]
[404710671,1770489045462,-500.0,0.00035616,120]
[404710672,1770489045473,-500.0,0.00035616,120]
[404710673,1770489045483,-500.0,0.00035616,120]
[404710674,1770489045492,-500.0,0.00035616,120]
[404710675,1770489045503,-500.0,0.00035616,120]
[404710676,1770489045512,-500.0,0.00035616,120]
[404710677,1770489045522,-500.0,0.00035616,120]
[404710678,1770489045531,-545.77583057,0.00035616,120]
[404710679,1770489045540,-500.0,0.00035616,120]
[404710680,1770489045550,-500.0,0.00035616,120]
[404710681,1770489045560,-500.0,0.00035616,120]
[404710682,1770489045572,-500.0,0.00035616,120]
[404710683,1770489045581,-500.0,0.00035616,120]
[404710684,1770489045592,-500.0,0.00035616,120]
[404710685,1770489045602,-500.0,0.00035616,120]
[404710686,1770489045611,-537.6030186,0.00035616,120]
[404710687,1770489045622,-507.07047882,0.00035616,120]
[404710688,1770489045632,-506.25651286,0.00035616,120]
[404710689,1770489045642,-575.33395416,0.00035616,120]
[404710690,1770489045654,-500.0,0.00035616,120]
[404710691,1770489045663,-500.0,0.00035616,120]
[404710692,1770489045672,-500.0,0.00035616,120]
[404710693,1770489045682,-530.41270385,0.00035616,120]
[404710694,1770489045691,-500.0,0.00035616,120]
[404710695,1770489045700,-500.0,0.00035616,120]
[404710696,1770489045709,-500.0,0.00035616,120]
[404710697,1770489045719,-500.0,0.00035616,120]
[404710698,1770489045728,-527.43362897,0.00035616,120]
[404710699,1770489045737,-500.0,0.00035616,120]
[404710700,1770489045747,-500.0,0.00035616,120]
[404710701,1770489045756,-500.0,0.00035616,120]
[404710702,1770489045765,-500.0,0.00035616,120]
[404710703,1770489045775,-500.0,0.00035616,120]
[404710704,1770489045784,-500.0,0.00035616,120]
[404710705,1770489045793,-552.94416718,0.00035616,120]
[404710707,1770489045803,-500.0,0.00035616,120]
[404710709,1770489045813,-500.0,0.00035616,120]
[404710711,1770489045822,-500.0,0.00035616,120]
[404710712,1770489045832,-561.00864434,0.00035616,120]
[404710713,1770489045842,-500.0,0.00035616,120]
[404710714,1770489045853,-500.0,0.00035616,120]
[404710715,1770489045864,-500.0,0.00035616,120]
[404710716,1770489045874,-500.0,0.00035616,120]
[404710717,1770489045886,-500.0,0.00035616,120]
[404710718,1770489045896,-500.0,0.00035616,120]
[404710719,1770489045906,-500.0,0.00035616,120]
[404710720,1770489045915,-500.0,0.00035616,120]
[404710721,1770489045925,-500.0,0.00035616,120]
[404710722,1770489045934,-231.30844011,0.00035616,120]
[404710723,1770489045943,-500.0,0.00035616,120]
[404710724,1770489045952,-500.0,0.00035616,120]
[404710725,1770489045962,-500.0,0.00035616,120]
[404710726,1770489045971,-500.0,0.00035616,120]
[404710727,1770489045981,-514.41248528,0.00035616,120]
[404710728,1770489045990,-500.0,0.00035616,120]
[404710729,1770489045999,-550.27551874,0.00035616,120]
[404710730,1770489046008,-507.36841931,0.00035616,120]
[404710731,1770489046018,-500.0,0.00035616,120]
[404710732,1770489046027,-500.0,0.00035616,120]
[404710733,1770489046037,-500.0,0.00035616,120]
[404710734,1770489046048,-500.0,0.00035616,120]
[404710735,1770489046058,-500.0,0.00035616,120]
[404710736,1770489046067,-529.11066234,0.00035616,120]
[404710737,1770489046077,-502.85148283,0.00035616,120]
[404710738,1770489046086,-500.0,0.00035616,120]
[404710739,1770489046095,-500.0,0.00035616,120]
[404710740,1770489046105,-500.0,0.00035616,120]
[404710741,1770489046114,-500.0,0.00035616,120]
[404710743,1770489046124,-500.0,0.00035616,120]
[404710745,1770489046133,-463.24358079,0.00035616,120]
[404710747,1770489046147,-569.74567474,0.00035616,120]
[404710748,1770489046157,-454.38660406,0.00035616,7]
[404710749,1770489046166,-150.71004244,0.00035673,5]
[404710750,1770489046175,-300.44649809,0.00035673,5]
[404710751,1770489046186,-152.0,0.00035723,3]
[404710752,1770489046196,-240.266667,0.000359,10]
[404710753,1770489046206,-507.0,0.00035911,18]
[404710754,1770489046218,-300.0,0.0003597,2]
[404710755,1770489046227,-400.0,0.0003597,2]
[404710756,1770489046237,-522.59,0.00036,30]
[404710757,1770489046246,-616.0,0.00036205,2]
[404710758,1770489046256,-150.0,0.0003643,2]
[404710759,1770489046266,-183.41,0.000365,2]
[404710760,1770489046276,-300.080229,0.00036616,80]
[404710761,1770489046286,-164.8272093,0.000367,120]
[404710762,1770489046295,-161.09653074,0.000367,120]
[404710763,1770489046305,-20366.33,0.000367,2]
[404710764,1770489046315,-522.59,0.0003672,30]
[404710765,1770489046325,-715.42612945,0.00036777,2]
[404710766,1770489046334,-300.0,0.00036799,10]
[404710767,1770489046344,-20366.34,0.000368,14]
[404710768,1770489046353,-559.94,0.00037067,120]
[404710769,1770489046363,-183.41,0.000371,2]
[404710770,1770489046372,-185.51510201,0.000372,120]
[404710771,1770489046382,-185.51510198,0.000372,120]
[404710772,1770489046391,-185.51510198,0.000372,120]
[404710773,1770489046401,-185.51510198,0.000372,120]
[404710774,1770489046410,-507.0,0.00037289,20]
[404710775,1770489046419,-522.59,0.0003744,30]
[404710776,1770489046429,-183.41,0.000377,2]
[404710777,1770489046438,-289.68,0.0003778,2]
[404710778,1770489046448,-292.87,0.00037805,2]
[404710779,1770489046457,-255.87821251,0.00037836,30]
[404710780,1770489046468,-576.77491399,0.000379,120]
[404710781,1770489046477,-233.73677134,0.00037999,120]
[404710782,1770489046487,-522.59,0.0003816,30]
[404710783,1770489046497,-150.0,0.00038252,2]
[404710784,1770489046507,-4448.04,0.000383,14]
[404710785,1770489046516,-276.59215114,0.00038356,120]
[404710786,1770489046526,-295.63620256,0.00038356,60]
[404710787,1770489046536,-500.0,0.00038356,60]
[404710788,1770489046545,-715.42612945,0.00038374,2]
[404710789,1770489046554,-500.0,0.00038411,60]
[404710790,1770489046564,-500.0,0.00038466,60]
[404710791,1770489046574,-500.0,0.0003852,60]
[404710792,1770489046583,-500.0,0.00038575,60]
[404710793,1770489046593,-150.0,0.0003861,30]
[404710794,1770489046602,-155.94692329,0.0003861,30]
[404710795,1770489046612,-500.0,0.0003863,60]
[404710796,1770489046621,-507.0,0.00038667,21]
[404710797,1770489046630,-500.0,0.00038685,60]
[404710798,1770489046640,-500.0,0.000387,120]
[404710799,1770489046649,-500.0,0.000387,120]